fUST/lending_fUST_20250811
["ID","MTS","AMOUNT","RATE_DAILY","PERIOD"]
[378585500,1754917856243,-151.0,0.00019709,2]
[378585501,1754917856253,-1000.0,0.00019721,2]
[378585502,1754917856262,-1000.0,0.00019721,2]
[378585503,1754917856272,-807.03355461,0.00019721,2]
[378585504,1754917856281,-1000.0,0.00019721,2]
[378585505,1754917856291,-1000.0,0.00019721,2]
[378585506,1754917856300,-1000.0,0.00019721,2]
[378585507,1754917856310,-1000.0,0.00019721,2]
[378585508,1754917856319,-1000.0,0.00019721,2]
[378585509,1754917856328,-1000.0,0.00019721,2]
[378585510,1754917856338,-500.0,0.00019721,2]
[378585511,1754917856348,-1075.04094587,0.00019721,2]
[378585512,1754917856358,-1000.0,0.00019721,2]
[378585513,1754917856368,-1000.0,0.00019721,2]
[378585514,1754917856379,-1000.0,0.00019721,2]
[378585515,1754917856392,-1000.0,0.00019721,2]
[378585516,1754917856402,-1000.0,0.00019721,2]
[378585517,1754917856412,-1000.0,0.00019721,2]
[378585518,1754917856422,-1000.0,0.00019721,2]
[378585519,1754917856432,-1000.0,0.00019721,2]
[378585520,1754917856443,-1000.0,0.00019721,2]
[378585521,1754917856453,-1000.0,0.00019721,2]
[378585522,1754917856463,-1000.0,0.00019721,2]
[378585523,1754917856472,-1000.0,0.00019721,2]
[378585524,1754917856482,-1000.0,0.00019721,2]
[378585525,1754917856492,-1000.0,0.00019721,2]
[378585526,1754917856501,-1000.0,0.00019721,2]
[378585527,1754917856512,-225.87216871,0.00019721,2]
[378585528,1754917856523,-1000.0,0.00019721,2]
[378585529,1754917856533,-1014.81854937,0.00019721,2]
[378585530,1754917856543,-1072.28433155,0.00019721,2]
[378585531,1754917856552,-500.0,0.00019721,2]
[378585532,1754917856562,-1000.0,0.00019721,2]
[378585533,1754917856571,-209.01178275,0.00019721,2]
[378585534,1754917856581,-1000.0,0.00019721,2]
[378585535,1754917856591,-1000.0,0.00019721,2]
[378585536,1754917856601,-1000.0,0.00019721,2]
[378585537,1754917856611,-505.1922163,0.00019721,2]
[378585538,1754917856621,-1000.0,0.00019721,2]
[378585539,1754917856631,-1000.0,0.00019721,2]
[378585540,1754917856640,-500.0,0.00019721,2]
[378585541,1754917856650,-1000.0,0.00019721,2]
[378585542,1754917856660,-500.24735261,0.00019721,2]
[378585543,1754917856670,-1000.0,0.00019721,2]
[378585544,1754917856680,-508.913389,0.00019721,2]
[378585545,1754917856691,-508.913389,0.00019721,2]
[378585546,1754917856701,-151.0,0.00019721,2]
[378585547,1754917856711,-303.718908,0.00019721,2]
[378585548,1754917856721,-303.718908,0.00019721,2]
[378585549,1754917856731,-200.514316,0.00019721,2]
[378585550,1754917856741,-200.514316,0.00019721,2]
[378585551,1754917856751,-156.682969,0.00019721,2]
[378585552,1754917856760,-151.0,0.00019721,2]
[378585553,1754917856770,-460.0,0.00019726,2]
[378585554,1754917856780,-460.0,0.00019726,2]
[378585555,1754917856790,-460.0,0.00019726,2]
[378585556,1754917856800,-460.0,0.00019726,2]
[378585557,1754917856811,-736.13,0.00019726,2]
[378585558,1754917856820,-460.0,0.00019726,2]
[378585559,1754917856830,-460.0,0.00019726,2]
[378585560,1754917856840,-460.0,0.00019726,2]
[378585561,1754917856849,-460.0,0.00019726,2]
[378585562,1754917856859,-491.17,0.00019726,2]
[378585563,1754917856869,-460.0,0.00019726,2]
[378585564,1754917856879,-460.0,0.00019726,2]
[378585565,1754917856889,-191.68958568,0.00019726,2]
[378585566,1754917856903,-460.0,0.00019726,2]
[378585567,1754917856912,-1211.47,0.00019726,2]
[378585568,1754917856922,-460.0,0.00019726,2]
[378585569,1754917856932,-460.0,0.00019726,2]
[378585570,1754917856943,-460.0,0.00019726,2]
[378585571,1754917856953,-935.26,0.00019726,2]
[378585572,1754917856963,-460.0,0.00019726,2]
[378585573,1754917856973,-655.59,0.00019726,2]
[378585574,1754917856983,-668.92,0.00019726,2]
[378585575,1754917856992,-726.62,0.00019726,2]
[378585576,1754917857002,-465.02924626,0.00019726,2]
[378585577,1754917857012,-670.06,0.00019726,2]
[378585578,1754917857022,-460.0,0.00019726,2]
[378585579,1754917857031,-460.0,0.00019726,2]
[378585580,1754917857041,-1000.0,0.00019726,2]
[378585581,1754917857050,-460.0,0.00019726,2]
[378585582,1754917857060,-460.0,0.00019726,2]
[378585583,1754917857070,-461.4589706,0.00019726,2]
[378585584,1754917857079,-460.0,0.00019726,2]
[378585585,1754917857089,-460.0,0.00019726,2]
[378585587,1754917857098,-460.0,0.00019726,2]
[378585589,1754917857108,-460.0,0.00019726,2]
[378585591,1754917857117,-460.0,0.00019726,2]
[378585593,1754917857127,-460.0,0.00019726,2]
[378585595,1754917857138,-460.0,0.00019726,2]
[378585597,1754917857148,-460.0,0.00019726,2]
[378585599,1754917857157,-460.0,0.00019726,2]
[378585600,1754917857166,-460.0,0.00019726,2]
[378585601,1754917857176,-460.0,0.00019726,2]
[378585603,1754917857187,-730.14,0.00019726,2]
[378585605,1754917857197,-460.0,0.00019726,2]
[378585607,1754917857207,-460.0,0.00019726,2]
[378585609,1754917857216,-460.0,0.00019726,2]
[378585611,1754917857226,-529.92,0.00019726,2]
[378585613,1754917857236,-460.0,0.00019726,2]
[378585615,1754917857246,-473.15,0.00019726,2]
[378585617,1754917857261,-1260.68,0.00019726,2]
[378585619,1754917857271,-460.0,0.00019726,2]
[378585621,1754917857281,-517.97,0.00019726,2]
[378585623,1754917857292,-460.0,0.00019726,2]
[378585625,1754917857303,-460.0,0.00019726,2]
[378585627,1754917857316,-460.0,0.00019726,2]
[378585629,1754917857329,-460.0,0.00019726,2]
[378585631,1754917857339,-460.0,0.00019726,2]
[378585633,1754917857348,-460.0,0.00019726,2]
[378585636,1754917857359,-868.19,0.00019726,2]
[378585638,1754917857368,-460.0,0.00019726,2]
[378585640,1754917857378,-690.22,0.00019726,2]
[378585642,1754917857387,-460.0,0.00019726,2]
[378585644,1754917857397,-460.0,0.00019726,2]
[378585646,1754917857407,-460.0,0.00019726,2]
[378585648,1754917857417,-709.57,0.00019726,2]
[378585650,1754917857427,-460.0,0.00019726,2]
[378585652,1754917857437,-460.0,0.00019726,2]
[378585654,1754917857446,-460.0,0.00019726,2]
[378585656,1754917857456,-673.12,0.00019726,2]
[378585658,1754917857466,-486.1938409,0.00019726,2]
[378585660,1754917857476,-460.0,0.00019726,2]
[378585662,1754917857486,-665.18,0.00019726,2]
[378585664,1754917857495,-460.0,0.00019726,2]
[378585666,1754917857505,-770.07,0.00019726,2]
[378585668,1754917857516,-779.52,0.00019726,2]
[378585670,1754917857526,-735.16,0.00019726,2]
[378585672,1754917857536,-460.0,0.00019726,2]
[378585674,1754917857546,-460.0,0.00019726,2]
[378585676,1754917857557,-460.0,0.00019726,2]
[378585678,1754917857567,-933.6,0.00019726,2]
[378585701,1754917857751,-460.0,0.00019726,2]
[378585704,1754917857790,-460.0,0.00019726,2]
[378585706,1754917857801,-460.0,0.00019726,2]
[378585708,1754917857810,-460.0,0.00019726,2]
[378585710,1754917857820,-764.06,0.00019726,2]
[378585712,1754917857830,-460.0,0.00019726,2]
[378585714,1754917857840,-460.0,0.00019726,2]
[378585716,1754917857850,-460.0,0.00019726,2]
[378585718,1754917857859,-523.07,0.00019726,2]
[378585720,1754917857869,-569.52,0.00019726,2]
[378585722,1754917857880,-1563.92,0.00019726,2]
[378585724,1754917857891,-460.0,0.00019726,2]
[378585726,1754917857904,-458.795678,0.00019726,2]
[378585728,1754917857914,-766.87,0.00019726,2]
[378585730,1754917857924,-460.0,0.00019726,2]
[378585732,1754917857934,-460.0,0.00019726,2]
[378585734,1754917857945,-460.0,0.00019726,2]
[378585736,1754917857955,-581.54,0.00019726,2]
[378585738,1754917857965,-460.0,0.00019726,2]
[378585740,1754917857975,-460.0,0.00019726,2]
[378585742,1754917857984,-460.0,0.00019726,2]
[378585745,1754917857994,-460.0,0.00019726,2]
[378585747,1754917858003,-460.0,0.00019726,2]
[378585749,1754917858013,-460.0,0.00019726,2]
[378585751,1754917858022,-460.0,0.00019726,2]
[378585753,1754917858032,-460.0,0.00019726,2]
[378585755,1754917858042,-460.0,0.00019726,2]
[378585757,1754917858051,-151.0,0.00019726,2]
[378585759,1754917858060,-460.0,0.00019726,2]
[378585761,1754917858070,-460.0,0.00019726,2]
[378585763,1754917858079,-460.0,0.00019726,2]
[378585765,1754917858088,-460.0,0.00019726,2]
[378585767,1754917858097,-460.0,0.00019726,2]
[378585769,1754917858107,-477.508044,0.00019726,2]
[378585771,1754917858116,-460.0,0.00019726,2]
[378585773,1754917858127,-460.0,0.00019726,2]
[378585775,1754917858136,-460.0,0.00019726,2]
[378585777,1754917858145,-460.0,0.00019726,2]
[378585779,1754917858155,-151.0,0.00019726,2]
[378585781,1754917858164,-460.0,0.00019726,2]
[378585783,1754917858174,-460.0,0.00019726,2]
[378585785,1754917858183,-460.0,0.00019726,2]
[378585787,1754917858195,-460.0,0.00019726,2]
[378585789,1754917858204,-569.87475365,0.00019726,2]
[378585791,1754917858214,-460.0,0.00019726,2]
[378585793,1754917858223,-736.2,0.00019726,2]
[378585795,1754917858233,-460.0,0.00019726,2]
[378585797,1754917858242,-460.0,0.00019726,2]
[378585799,1754917858251,-841.13,0.00019726,2]
[378585801,1754917858261,-624.36,0.00019726,2]
[378585803,1754917858270,-460.0,0.00019726,2]
[378585805,1754917858280,-1060.98,0.00019726,2]
[378585807,1754917858289,-460.0,0.00019726,2]
[378585809,1754917858299,-460.0,0.00019726,2]
[378585811,1754917858309,-460.0,0.00019726,2]
[378585813,1754917858318,-861.71,0.00019726,2]
[378585815,1754917858328,-460.0,0.00019726,2]
[378585817,1754917858337,-460.0,0.00019726,2]
[378585819,1754917858347,-460.0,0.00019726,2]
[378585821,1754917858357,-772.77,0.00019726,2]
[378585823,1754917858366,-460.0,0.00019726,2]
[378585825,1754917858376,-460.0,0.00019726,2]
[378585827,1754917858385,-460.0,0.00019726,2]
[378585829,1754917858395,-460.0,0.00019726,2]
[378585831,1754917858404,-1276.56,0.00019726,2]
[378585832,1754917858414,-460.0,0.00019726,2]
[378585834,1754917858424,-460.0,0.00019726,2]
[378585836,1754917858434,-543.47,0.00019726,2]
[378585838,1754917858447,-460.0,0.00019726,2]
[378585839,1754917858457,-460.0,0.00019726,2]
[378585841,1754917858466,-766.19,0.00019726,2]
[378585843,1754917858477,-308.41744203,0.00019726,2]
[378585844,1754917858486,-497.31,0.00019726,2]
[378585845,1754917858496,-500.0,0.00019726,2]
[378585846,1754917858506,-610.92,0.00019726,2]
[378585847,1754917858515,-460.0,0.00019726,2]
[378585848,1754917858525,-686.35,0.00019726,2]
[378585849,1754917858535,-525.18,0.00019726,2]
[378585851,1754917858545,-460.0,0.00019726,2]
[378585853,1754917858554,-460.0,0.00019726,2]
[378585854,1754917858564,-460.0,0.00019726,2]
[378585856,1754917858573,-163.0063287,0.00019726,2]
[378585858,1754917858583,-460.0,0.00019726,2]
[378585860,1754917858592,-460.0,0.00019726,2]
[378585861,1754917858601,-460.0,0.00019726,2]
[378585863,1754917858611,-460.0,0.00019726,2]
[378585865,1754917858620,-460.0,0.00019726,2]
[378585866,1754917858629,-460.0,0.00019726,2]
[378585868,1754917858638,-232.5585651,0.00019726,2]
[378585870,1754917858648,-460.0,0.00019726,2]
[378585871,1754917858657,-512.72,0.00019726,2]
[378585873,1754917858667,-282.70749764,0.00019726,2]
[378585875,1754917858676,-638.08,0.00019726,2]
[378585877,1754917858686,-460.0,0.00019726,2]
[378585878,1754917858700,-496.45,0.00019726,2]
[378585880,1754917858709,-460.0,0.00019726,2]
[378585882,1754917858719,-460.0,0.00019726,2]
[378585884,1754917858729,-460.0,0.00019726,2]
[378585885,1754917858739,-460.0,0.00019726,2]
[378585887,1754917858748,-460.0,0.00019726,2]
[378585889,1754917858758,-1972.13,0.00019726,2]
[378585891,1754917858767,-460.0,0.00019726,2]
[378585892,1754917858777,-460.0,0.00019726,2]
[378585894,1754917858787,-460.0,0.00019726,2]
[378585896,1754917858796,-460.0,0.00019726,2]
[378585898,1754917858805,-880.16,0.00019726,2]
[378585899,1754917858814,-460.0,0.00019726,2]
[378585901,1754917858823,-1610.1,0.00019726,2]
[378585903,1754917858833,-588.31,0.00019726,2]
[378585905,1754917858842,-460.0,0.00019726,2]
[378585906,1754917858851,-460.0,0.00019726,2]
[378585908,1754917858860,-460.0,0.00019726,2]
[378585909,1754917858869,-1372.52,0.00019726,2]
[378585910,1754917858879,-460.0,0.00019726,2]
[378585911,1754917858889,-630.7,0.00019726,2]
[378585912,1754917858900,-460.0,0.00019726,2]
[378585913,1754917858910,-152.2224,0.00019726,2]
[378585914,1754917858919,-460.0,0.00019726,2]
[378585915,1754917858929,-485.52889551,0.00019726,2]
[378585916,1754917858941,-460.0,0.00019726,2]
[378585917,1754917858951,-460.0,0.00019726,2]
[378585918,1754917858960,-460.0,0.00019726,2]
[378585919,1754917858970,-631.31,0.00019726,2]
[378585920,1754917858980,-460.0,0.00019726,2]
[378585921,1754917858990,-460.0,0.00019726,2]
[378585922,1754917858999,-151.0,0.00019726,2]
[378585923,1754917859008,-916.34,0.00019726,2]
[378585924,1754917859017,-460.0,0.00019726,2]
[378585925,1754917859027,-764.9,0.00019726,2]
[378585926,1754917859036,-460.0,0.00019726,2]
[378585927,1754917859046,-460.0,0.00019726,2]
[378585928,1754917859055,-460.0,0.00019726,2]
[378585930,1754917859065,-1316.22,0.00019726,2]
[378585931,1754917859075,-912.2,0.00019726,2]
[378585933,1754917859085,-438.44634756,0.00019726,2]
[378585935,1754917859094,-204.753215,0.00019726,2]
[378585936,1754917859104,-460.0,0.00019726,2]
[378585937,1754917859113,-460.0,0.00019726,2]
[378585938,1754917859123,-460.0,0.00019726,2]
[378585939,1754917859133,-2503.29,0.00019726,2]
[378585940,1754917859142,-460.0,0.00019726,2]
[378585941,1754917859152,-460.0,0.00019726,2]
[378585942,1754917859161,-460.0,0.00019726,2]
[378585943,1754917859170,-460.0,0.00019726,2]
[378585944,1754917859179,-460.0,0.00019726,2]
[378585945,1754917859190,-460.0,0.00019726,2]
[378585946,1754917859199,-460.0,0.00019726,2]
[378585947,1754917859209,-460.0,0.00019726,2]
[378585948,1754917859218,-460.0,0.00019726,2]
[378585949,1754917859227,-460.0,0.00019726,2]
[378585950,1754917859237,-460.0,0.00019726,2]
[378585951,1754917859247,-460.0,0.00019726,2]
[378585952,1754917859256,-460.0,0.00019726,2]
[378585953,1754917859265,-460.0,0.00019726,2]
[378585954,1754917859275,-497.28876133,0.00019726,2]
[378585955,1754917859284,-521.84,0.00019726,2]
[378585956,1754917859294,-151.0,0.00019726,2]
[378585957,1754917859303,-460.0,0.00019726,2]
[378585958,1754917859313,-523.0826041,0.00019726,2]
[378585959,1754917859323,-460.0,0.00019726,2]
[378585960,1754917859332,-460.0,0.00019726,2]
[378585961,1754917859342,-460.0,0.00019726,2]
[378585962,1754917859352,-460.0,0.00019726,2]
[378585963,1754917859361,-460.0,0.00019726,2]
[378585964,1754917859371,-468.37,0.00019726,2]
[378585965,1754917859381,-460.0,0.00019726,2]
[378585966,1754917859390,-460.0,0.00019726,2]
[378585967,1754917859400,-460.0,0.00019726,2]
[378585968,1754917859410,-460.0,0.00019726,2]
[378585969,1754917859420,-460.0,0.00019726,2]
[378585970,1754917859430,-789.64,0.00019726,2]
[378585971,1754917859440,-460.0,0.00019726,2]
[378585972,1754917859449,-1380.02,0.00019726,2]
[378585973,1754917859459,-460.0,0.00019726,2]
[378585974,1754917859469,-460.0,0.00019726,2]
[378585975,1754917859478,-460.0,0.00019726,2]
[378585976,1754917859488,-460.0,0.00019726,2]
[378585977,1754917859498,-460.0,0.00019726,2]
[378585978,1754917859507,-460.0,0.00019726,2]
[378585979,1754917859516,-460.0,0.00019726,2]
[378585980,1754917859525,-286.84872159,0.00019726,2]
[378585981,1754917859535,-330.58120322,0.00019726,2]
[378585982,1754917859545,-460.0,0.00019726,2]
[378585983,1754917859555,-357.7238161,0.00019726,2]
[378585984,1754917859564,-460.0,0.00019726,2]
[378585985,1754917859574,-5179.06,0.00019726,2]
[378585986,1754917859584,-562.29578521,0.00019726,2]
[378585987,1754917859593,-465.54300267,0.00019726,2]
[378585988,1754917859603,-151.0,0.00019726,2]
[378585989,1754917859612,-1468.07,0.00019726,2]
[378585990,1754917859622,-460.0,0.00019726,2]
[378585991,1754917859631,-741.32,0.00019726,2]
[378585992,1754917859641,-1581.26,0.00019726,2]
[378585993,1754917859650,-460.0,0.00019726,2]
[378585994,1754917859659,-1256.59,0.00019726,2]
[378585995,1754917859668,-460.0,0.00019726,2]
[378585996,1754917859678,-571.835359,0.00019726,2]
[378585997,1754917859687,-1834.79,0.00019726,2]
[378585998,1754917859699,-571.835359,0.00019726,2]
[378585999,1754917859708,-1443.52,0.00019726,2]
[378586000,1754917859718,-593.15,0.00019726,2]
[378586001,1754917859728,-460.0,0.00019726,2]
[378586002,1754917859737,-151.93656,0.00019726,2]
[378586003,1754917859746,-460.0,0.00019726,2]
[378586004,1754917859756,-460.0,0.00019726,2]
[378586005,1754917859766,-460.0,0.00019726,2]
[378586006,1754917859775,-2037.15,0.00019726,2]
[378586007,1754917859785,-1133.25,0.00019726,2]
[378586008,1754917859794,-866.1,0.00019726,2]
[378586009,1754917859803,-460.0,0.00019726,2]
[378586010,1754917859813,-460.0,0.00019726,2]
[378586011,1754917859822,-499.72968896,0.00019726,2]
[378586012,1754917859832,-661.27,0.00019726,2]
[378586013,1754917859842,-460.0,0.00019726,2]
[378586014,1754917859851,-460.0,0.00019726,2]
[378586015,1754917859861,-460.0,0.00019726,2]
[378586016,1754917859871,-460.0,0.00019726,2]
[378586017,1754917859880,-597.69,0.00019726,2]
[378586018,1754917859891,-461.92465951,0.00019726,2]
[378586019,1754917859902,-2905.35,0.00019726,2]
[378586020,1754917859912,-460.0,0.00019726,2]
[378586021,1754917859922,-1107.57,0.00019726,2]
[378586022,1754917859931,-460.0,0.00019726,2]
[378586023,1754917859942,-460.0,0.00019726,2]
[378586024,1754917859952,-460.0,0.00019726,2]
[378586025,1754917859961,-460.0,0.00019726,2]
[378586026,1754917859972,-460.0,0.00019726,2]
[378586027,1754917859982,-1149.51,0.00019726,2]
[378586028,1754917859992,-460.0,0.00019726,2]
[378586029,1754917860001,-737.59,0.00019726,2]
[378586030,1754917860011,-460.0,0.00019726,2]
[378586031,1754917860020,-1132.76,0.00019726,2]
[378586032,1754917860030,-4452.22,0.00019726,2]
[378586033,1754917860040,-460.0,0.00019726,2]
[378586034,1754917860051,-460.0,0.00019726,2]
[378586035,1754917860062,-865.24,0.00019726,2]
[378586036,1754917860071,-460.0,0.00019726,2]
[378586037,1754917860081,-460.0,0.00019726,2]
[378586038,1754917860146,-862.22,0.00019726,2]
[378586039,1754917860156,-460.0,0.00019726,2]
[378586040,1754917860166,-536.01,0.00019726,2]
[378586041,1754917860176,-460.0,0.00019726,2]
[378586042,1754917860185,-460.0,0.00019726,2]
[378586043,1754917860195,-460.0,0.00019726,2]
[378586044,1754917860205,-460.0,0.00019726,2]
[378586045,1754917860214,-460.0,0.00019726,2]
[378586046,1754917860223,-460.0,0.00019726,2]
[378586047,1754917860233,-460.0,0.00019726,2]
[378586048,1754917860243,-460.0,0.00019726,2]
[378586049,1754917860252,-460.0,0.00019726,2]
[378586050,1754917860262,-460.0,0.00019726,2]
[378586051,1754917860271,-737.54,0.00019726,2]
[378586052,1754917860281,-586.96299819,0.00019726,2]
[378586053,1754917860291,-460.0,0.00019726,2]
[378586054,1754917860300,-460.0,0.00019726,2]
[378586055,1754917860310,-952.4,0.00019726,2]
[378586056,1754917860319,-460.0,0.00019726,2]
[378586057,1754917860328,-460.0,0.00019726,2]
[378586058,1754917860338,-516.65,0.00019726,2]
[378586059,1754917860347,-460.0,0.00019726,2]
[378586060,1754917860356,-3819.79,0.00019726,2]
[378586061,1754917860366,-460.0,0.00019726,2]
[378586062,1754917860375,-471.17,0.00019726,2]
[378586063,1754917860385,-460.0,0.00019726,2]
[378586064,1754917860394,-460.0,0.00019726,2]
[378586065,1754917860404,-392.26436379,0.00019726,2]
[378586066,1754917860413,-1010.81,0.00019726,2]
[378586067,1754917860423,-460.0,0.00019726,2]
[378586068,1754917860432,-3493.15,0.00019726,2]
[378586069,1754917860442,-460.0,0.00019726,2]
[378586070,1754917860452,-460.0,0.00019726,2]
[378586071,1754917860461,-460.0,0.00019726,2]
[378586072,1754917860471,-792.1,0.00019726,2]
[378586073,1754917860481,-460.0,0.00019726,2]
[378586074,1754917860490,-703.44,0.00019726,2]
[378586075,1754917860500,-460.0,0.00019726,2]
[378586076,1754917860509,-460.0,0.00019726,2]
[378586077,1754917860518,-460.0,0.00019726,2]
[378586078,1754917860527,-556.81,0.00019726,2]
[378586079,1754917860537,-1298.9,0.00019726,2]
[378586080,1754917860546,-1287.16,0.00019726,2]
[378586081,1754917860556,-460.0,0.00019726,2]
[378586082,1754917860566,-722.84,0.00019726,2]
[378586083,1754917860575,-462.14163462,0.00019726,2]
[378586084,1754917860585,-460.0,0.00019726,2]
[378586085,1754917860595,-2152.29,0.00019726,2]
[378586086,1754917860605,-460.0,0.00019726,2]
[378586087,1754917860614,-1256.64,0.00019726,2]
[378586088,1754917860623,-151.0,0.00019726,2]
[378586089,1754917860633,-694.12,0.00019726,2]
[378586090,1754917860643,-460.0,0.00019726,2]
[378586091,1754917860653,-407.73537088,0.00019726,2]
[378586092,1754917860662,-460.0,0.00019726,2]
[378586093,1754917860672,-460.0,0.00019726,2]
[378586094,1754917860681,-941.16,0.00019726,2]
[378586095,1754917860692,-503.86,0.00019726,2]
[378586096,1754917860702,-460.0,0.00019726,2]
[378586097,1754917860712,-460.0,0.00019726,2]
[378586098,1754917860721,-460.0,0.00019726,2]
[378586099,1754917860730,-897.94,0.00019726,2]
[378586100,1754917860740,-701.05,0.00019726,2]
[378586101,1754917860749,-460.0,0.00019726,2]
[378586102,1754917860758,-460.0,0.00019726,2]
[378586103,1754917860768,-460.0,0.00019726,2]
[378586104,1754917860778,-1007.84,0.00019726,2]
[378586105,1754917860787,-460.0,0.00019726,2]
[378586106,1754917860797,-460.0,0.00019726,2]
[378586107,1754917860806,-460.0,0.00019726,2]
[378586108,1754917860816,-882.05,0.00019726,2]
[378586109,1754917860825,-494.56,0.00019726,2]
[378586110,1754917860835,-460.0,0.00019726,2]
[378586111,1754917860844,-460.0,0.00019726,2]
[378586112,1754917860854,-460.0,0.00019726,2]
[378586113,1754917860863,-460.0,0.00019726,2]
[378586114,1754917860873,-460.0,0.00019726,2]
[378586115,1754917860882,-460.0,0.00019726,2]
[378586116,1754917860894,-1463.08,0.00019726,2]
[378586117,1754917860904,-460.0,0.00019726,2]
[378586118,1754917860913,-460.0,0.00019726,2]
[378586119,1754917860923,-4926.55,0.00019726,2]
[378586120,1754917860933,-815.14,0.00019726,2]
[378586121,1754917860945,-460.0,0.00019726,2]
[378586122,1754917860956,-460.0,0.00019726,2]
[378586123,1754917860965,-460.0,0.00019726,2]
[378586124,1754917860977,-460.0,0.00019726,2]
[378586125,1754917860987,-558.18,0.00019726,2]
[378586126,1754917860997,-1141.02,0.00019726,2]
[378586127,1754917861006,-1140.11,0.00019726,2]
[378586128,1754917861016,-460.0,0.00019726,2]
[378586129,1754917861025,-1189.87,0.00019726,2]
[378586130,1754917861035,-460.0,0.00019726,2]
[378586131,1754917861044,-481.84188262,0.00019726,2]
[378586132,1754917861053,-460.0,0.00019726,2]
[378586133,1754917861063,-500.0,0.00019773,2]
[378586134,1754917861072,-160.0,0.00019787,2]
[378586135,1754917861082,-160.0,0.00019787,2]
[378586136,1754917861091,-160.0,0.00019787,2]
[378586137,1754917861100,-12671.21867243,0.00019787,2]
[378586138,1754917861109,-160.0,0.00019787,2]
[378586139,1754917861119,-417.15472785,0.00019787,2]
[378586140,1754917861128,-461.69158338,0.00019787,2]
[378586141,1754917861137,-215.4905783,0.00019787,2]
[378586142,1754917861147,-160.0,0.00019787,2]
[378586143,1754917861157,-160.0,0.00019787,2]
[378586144,1754917861166,-843.18994796,0.00019787,2]
[378586145,1754917861176,-160.0,0.00019787,2]
[378586146,1754917861185,-216.68257536,0.00019787,2]
[378586147,1754917861196,-231.9940742,0.00019787,2]
[378586148,1754917861205,-527.9539256,0.00019787,2]
[378586149,1754917861214,-160.0,0.00019787,2]
[378586150,1754917861224,-198.76446647,0.00019789,2]
[378586151,1754917861233,-151.0,0.00019789,2]
[378586152,1754917861243,-151.0,0.00019789,2]
[378586153,1754917861252,-151.0,0.00019789,2]
[378586154,1754917861263,-151.0,0.00019789,2]
[378586155,1754917861283,-151.0,0.00019789,2]
[378586156,1754917861297,-151.29225427,0.00019789,2]
[378586157,1754917861306,-151.0,0.00019789,2]
[378586158,1754917861316,-151.0,0.00019789,2]
[378586159,1754917861325,-155.57098955,0.00019789,2]
[378586160,1754917861334,-500.0,0.00019789,2]
[378586161,1754917861343,-151.0,0.00019789,2]
[378586162,1754917861353,-151.0,0.00019789,2]
[378586163,1754917861362,-151.0,0.00019789,2]
[378586164,1754917861371,-151.0,0.00019789,2]
[378586165,1754917861380,-460.0,0.00019789,2]
[378586166,1754917861390,-747.54,0.00019789,2]